bitfinex-derivatives/quotes_ETHF0:USTF0_20250701
["timestamp","ask_amount","ask_price","bid_price","bid_amount"]
[1751331729625,25.06117,2495.7,2495.6,3.16121]
[1751331731222,25.06117,2495.7,2495.6,3.04121]
[1751331731424,25.06117,2495.7,2495.6,0.80121]
[1751331731824,25.06117,2495.7,2495.6,2.78121]
[1751331732229,25.06117,2495.7,2495.6,0.80121]
[1751331732430,25.06117,2495.7,2495.6,2.76121]
[1751331732729,25.06117,2495.7,2495.6,0.80121]
[1751331733228,25.06117,2495.7,2495.6,2.83121]
[1751331733631,25.06117,2495.7,2495.6,0.80121]
[1751331734225,25.06117,2495.7,2495.6,2.87121]
[1751331734433,25.06117,2495.7,2495.6,0.80121]
[1751331734639,25.06117,2495.7,2495.6,2.82121]
[1751331734834,25.06117,2495.7,2495.6,0.80121]
[1751331735035,25.06117,2495.7,2495.6,3.12121]
[1751331735538,0.80128,2495.5,2495.4,0.80124]
[1751331735939,0.80128,2495.5,2495.4,2.87124]
[1751331736239,0.80128,2495.5,2495.4,2.85124]
[1751331736437,0.80128,2495.5,2495.4,3.02124]
[1751331736740,3.06633232,2495.5,2495.4,3.18124]
[1751331736941,3.06633232,2495.5,2495.4,2.90124]
[1751331737141,3.06633232,2495.5,2495.4,0.80124]
[1751331737445,0.8013,2495.4,2495.3,0.80128]
[1751331737636,0.8013,2495.4,2495.1,0.80135]
[1751331737637,0.80133,2495.2,2495.1,0.80135]
[1751331737833,3.06638232,2495.2,2495.1,2.08]
[1751331738342,3.06638232,2495.2,2495.1,2.88137]
[1751331738934,3.06638232,2495.2,2495.1,0.80137]
[1751331739330,3.06638232,2495.2,2495.1,3.17137]
[1751331739542,0.80137,2495.1,2495.0,0.80138]
[1751331739742,0.8014,2495.0,2494.9,5.00951]
[1751331739942,25.264,2495.1,2495.0,0.8014]
[1751331739943,26.06538,2495.1,2495.0,0.8014]
[1751331740240,26.06538,2495.1,2495.0,2.7514]
[1751331740438,0.8014,2495.0,2494.9,5.00951]
[1751331740639,0.8014,2495.0,2494.9,8.22951]
[1751331741643,0.8014,2495.0,2494.9,7.4281]
[1751331741944,0.8014,2495.0,2494.9,8.22953]
[1751331742145,0.8014,2495.0,2494.9,7.4281]
[1751331742337,0.8014,2495.0,2494.9,8.22953]
[1751331743144,0.8014,2495.0,2494.9,7.4281]
[1751331743735,25.0604,2495.0,2494.9,8.22953]
[1751331744044,25.0604,2495.0,2494.9,7.22923]
[1751331744445,25.0604,2495.0,2494.9,6.4278]
[1751331744642,0.8014,2495.0,2494.9,3.22]
[1751331744944,25.0604,2495.0,2494.9,3.22]
[1751331745643,25.0604,2495.0,2494.9,4.02143]
[1751331746046,25.0604,2495.0,2494.9,3.22]
[1751331749245,25.0604,2495.0,2494.9,4.02143]
[1751331749547,25.0604,2495.0,2494.9,3.22]
[1751331750144,0.8014,2495.0,2494.9,4.02143]
[1751331750349,1.8074,2495.1,2495.0,0.8014]
[1751331750552,28.33245232,2495.1,2495.0,3.8]
[1751331750745,28.33245232,2495.1,2495.0,4.6014]
[1751331751144,26.0674,2495.1,2495.0,4.6014]
[1751331753254,44.65990464,2495.1,2494.2,3.2078]
[1751331753447,3.06666232,2494.4,2494.3,0.80158]
[1751331753646,0.80162,2494.3,2494.2,4.94853]
[1751331753845,0.80162,2494.3,2494.2,10.60853]
[1751331755651,26.54205232,2494.4,2494.3,0.80162]
[1751331755949,27.34364232,2494.4,2494.3,6.78162]
[1751331756152,25.07859,2494.4,2494.3,6.78162]
[1751331756452,24.277,2494.4,2494.3,6.78162]
[1751331756649,25.07859,2494.4,2494.3,6.78162]
[1751331756850,25.07859,2494.4,2494.3,5.98]
[1751331757046,27.34364232,2494.4,2494.3,5.98]
[1751331759349,27.34364232,2494.4,2494.3,6.78162]
[1751331759654,27.34364232,2494.4,2494.3,5.98]
[1751331760757,28.67664232,2494.4,2494.3,5.98]
[1751331762352,25.07859,2494.4,2494.3,5.98]
[1751331762959,25.07859,2494.4,2494.3,1.44722]
[1751331763252,25.08859,2494.4,2494.3,0.6456]
[1751331763458,0.80169,2494.2,2494.1,0.80168]
[1751331763757,24.287,2494.4,2494.3,0.80162]
[1751331763959,24.287,2494.4,2494.3,2.99162]
[1751331764159,3.2078,2494.5,2494.4,0.80159]
[1751331764458,27.4998,2494.5,2494.4,6.36159]
[1751331765458,28.30138,2494.5,2494.4,6.36159]
[1751331765959,0.80145,2494.9,2494.8,0.80143]
[1751331766159,3.8954,2495.1,2494.8,1.71]
[1751331766360,24.297,2495.0,2494.9,0.80143]
[1751331766559,24.297,2495.0,2494.9,5.01593]
[1751331766764,25.0984,2495.0,2494.9,2.87593]
[1751331767054,0.8014,2495.0,2494.9,2.87592]
[1751331767260,27.36345232,2495.0,2494.9,3.44532]
[1751331767965,0.80135,2495.2,2495.1,0.80135]
[1751331768156,25.09635,2495.2,2495.1,6.43135]
[1751331768757,25.09635,2495.2,2495.1,0.80135]
[1751331768957,25.09635,2495.2,2495.1,3.58135]
[1751331769159,25.09633,2495.2,2495.1,3.58135]
[1751331771465,27.36138232,2495.2,2495.1,2.78]
[1751331771962,0.8014,2495.0,2494.9,0.6639]
[1751331772167,3.06645232,2495.0,2494.9,3.63533]
[1751331772665,3.06645232,2495.0,2494.9,2.8339]
[1751331772866,3.06645232,2495.0,2494.9,2.9839]
[1751331773868,3.06645232,2495.0,2494.9,3.78533]
[1751331774566,3.06645232,2495.0,2494.9,0.6639]
[1751331774773,9.74144464,2495.0,2494.5,0.6713]
[1751331775071,2.26505232,2494.6,2494.5,2.27916]
[1751331775269,27.39158232,2494.6,2494.5,2.27916]
[1751331776572,27.39158232,2494.6,2494.5,1.4776]
[1751331777073,27.39158232,2494.6,2494.5,2.27916]
[1751331777974,27.39158232,2494.6,2494.5,1.4776]
[1751331778668,27.39158232,2494.6,2494.5,0.09]
[1751331779368,0.80162,2494.3,2494.2,2.87283]
[1751331779563,0.80162,2494.3,2494.1,3.9055]
[1751331779564,0.80166,2494.2,2494.1,3.9055]
[1751331779769,0.80166,2494.2,2494.1,4.4155]
[1751331780174,0.80166,2494.2,2494.1,2.00939]
[1751331780769,0.80166,2494.2,2494.1,1.31169]
[1751331780971,0.80166,2494.2,2494.1,0.51]
[1751331783167,0.80166,2494.2,2494.1,1.31169]
[1751331783765,29.79085232,2494.3,2494.1,1.31169]
[1751331783766,30.59250232,2494.3,2494.2,0.80166]
[1751331783972,30.59250232,2494.3,2494.2,0.82166]
[1751331784272,30.59250232,2494.3,2494.2,0.02]
[1751331784666,30.59250232,2494.3,2494.2,0.82166]
[1751331784966,30.59250232,2494.3,2494.2,0.02]
[1751331785574,30.59250232,2494.3,2494.2,0.82166]
[1751331787974,5.47285232,2494.3,2494.2,0.82166]
[1751331788273,27.5278,2494.3,2494.2,0.82166]
[1751331788476,2.91085232,2494.8,2494.3,0.80162]
[1751331788678,0.80155,2494.6,2494.5,0.80153]
[1751331788868,0.80155,2494.6,2494.5,3.03153]
[1751331789068,0.80156,2494.5,2494.4,2.18317]
[1751331789273,0.80156,2494.5,2494.4,4.35317]
[1751331789475,0.80162,2494.3,2494.2,1.4129]
[1751331789775,27.39467232,2494.3,2494.2,4.1888]
[1751331790078,27.39467232,2494.3,2494.2,2.09]
[1751331790279,27.39467232,2494.3,2494.2,2.89166]
[1751331790579,28.33745,2494.3,2494.0,0.6957]
[1751331790778,28.33745,2494.3,2494.2,0.80166]
[1751331790779,25.12965,2494.3,2494.2,0.80166]
[1751331790973,25.12965,2494.3,2494.2,4.88166]
[1751331791574,24.328,2494.3,2494.2,4.88166]
[1751331792974,0.80162,2494.4,2494.3,0.80162]
[1751331793180,24.335,2494.4,2494.3,2.57162]
[1751331793380,4.00935,2494.6,2494.5,0.80156]
[1751331793576,28.34435,2494.6,2494.5,0.80156]
[1751331794082,2.00391,2494.5,2494.0,0.6957]
[1751331794284,3.06674232,2494.2,2494.1,1.50007]
[1751331794580,27.39974232,2494.2,2494.1,3.92007]
[1751331794780,28.07214232,2494.2,2494.1,3.92007]
[1751331795078,28.07214232,2494.2,2494.1,3.1184]
[1751331795679,28.07214232,2494.2,2494.1,3.92009]
[1751331795877,28.07211232,2494.2,2494.1,3.92009]
[1751331797378,25.0054,2494.2,2494.1,3.92009]
[1751331797682,24.333,2494.2,2494.1,5.34869]
[1751331798085,25.13466,2494.2,2494.1,5.34869]
[1751331798285,24.333,2494.2,2494.1,5.34869]
[1751331798486,1.4767,2494.4,2494.3,0.80162]
[1751331798686,0.80164,2494.3,2494.2,0.80163]
[1751331798887,0.80164,2494.3,2494.2,2.93163]
[1751331799990,25.81372,2494.4,2494.3,0.80162]
[1751331800182,25.81372,2494.4,2494.3,2.93162]
[1751331800379,25.81372,2494.4,2494.3,0.80162]
[1751331800894,25.81372,2494.4,2494.3,3.05162]
[1751331801587,25.81372,2494.4,2494.3,0.80162]
[1751331801782,24.332,2494.4,2494.3,2.91162]
[1751331802385,4.00935,2494.6,2494.5,0.80156]
[1751331802693,0.80158,2494.5,2494.4,0.80157]
[1751331802894,0.80158,2494.5,2494.4,2.86157]
[1751331803193,0.80158,2494.5,2494.4,0.80157]
[1751331803594,0.80158,2494.5,2494.4,2.85157]
[1751331803789,0.80158,2494.5,2494.4,2.87157]
[1751331803989,0.80158,2494.5,2494.4,2.80157]
[1751331804691,25.12958,2494.5,2494.4,2.80157]
[1751331805396,25.12958,2494.5,2494.4,3.47907]
[1751331806900,25.12958,2494.5,2494.4,1.47907]
[1751331807097,25.12958,2494.5,2494.4,3.64907]
[1751331807301,0.80158,2494.5,2494.4,1.47907]
[1751331807497,24.318,2494.5,2494.4,3.51907]
[1751331807704,24.318,2494.5,2494.4,3.86907]
[1751331808002,25.11956,2494.5,2494.4,3.60907]
[1751331809000,24.318,2494.5,2494.4,3.60907]
[1751331809703,24.318,2494.5,2494.4,3.39907]
[1751331810003,25.11956,2494.5,2494.4,1.47907]
[1751331810302,25.11956,2494.5,2494.4,3.59907]
[1751331810805,27.38461232,2494.5,2494.4,3.46907]
[1751331811801,27.38461232,2494.5,2494.4,1.47907]
[1751331812001,27.38461232,2494.5,2494.4,3.54907]
[1751331813103,27.38461232,2494.5,2494.4,1.47907]
[1751331813304,0.80159,2494.4,2494.3,0.8016]
[1751331813498,0.80165,2494.3,2494.2,0.80163]
[1751331813804,0.682,2494.4,2494.1,3.2078]
[1751331813805,1.48362,2494.4,2494.3,0.80162]
[1751331814501,1.48362,2494.4,2494.3,3.16162]
[1751331814699,1.48362,2494.4,2494.3,0.80162]
[1751331815006,0.80166,2494.3,2494.2,0.80163]
[1751331815402,3.74867232,2494.4,2494.3,0.80162]
[1751331815604,3.74867232,2494.4,2494.3,2.81162]
[1751331816004,6.95647232,2494.4,2494.3,2.81162]
[1751331816204,6.95647232,2494.4,2494.3,0.80162]
[1751331816401,6.95647232,2494.4,2494.3,2.79162]
[1751331816603,2.94705232,2494.4,2494.3,0.80162]
[1751331816903,27.24805232,2494.4,2494.3,3.09162]
[1751331817103,3.06659232,2494.6,2494.5,0.80156]
[1751331817301,3.20492852,2494.9,2494.6,0.80153]
[1751331817602,27.50892852,2494.9,2494.8,0.80146]
[1751331817808,24.304,2494.9,2494.8,6.62146]
[1751331818307,3.85952852,2495.0,2494.9,0.80143]
[1751331818608,28.16552852,2495.0,2494.9,4.61143]
[1751331818801,3.85952852,2495.0,2494.9,4.61143]
[1751331819001,28.16452852,2495.0,2494.9,4.61143]
[1751331819208,24.9596,2495.0,2494.9,4.61143]
[1751331819411,3.20492852,2495.1,2495.0,0.8014]
[1751331819604,27.50892852,2495.1,2495.0,7.4562]
[1751331820202,24.304,2495.1,2495.0,7.4562]
[1751331821212,3.20492852,2495.2,2495.1,0.80137]
[1751331821404,27.51792852,2495.2,2495.1,5.95137]
[1751331821909,24.313,2495.2,2495.1,5.95137]
[1751331822713,25.11433,2495.2,2495.1,5.95137]
[1751331823214,25.81893,2495.2,2495.1,5.95137]
[1751331825312,25.0086,2495.2,2495.1,5.95137]
[1751331826013,25.80993,2495.2,2495.1,5.95137]
[1751331826607,25.0086,2495.2,2495.1,5.95137]
[1751331827314,25.80993,2495.2,2495.1,5.95137]
[1751331827503,25.0086,2495.2,2495.1,5.95137]
[1751331828213,25.80993,2495.2,2495.1,5.95137]
[1751331828513,25.0086,2495.2,2495.1,5.95137]
[1751331828813,25.80993,2495.2,2495.1,5.95137]
[1751331829011,25.0086,2495.2,2494.8,2.0366]
[1751331829316,3.06648232,2495.0,2494.9,0.8014]
[1751331830111,3.06648232,2495.0,2494.9,2.7314]
[1751331830914,3.06648232,2495.0,2494.9,0.8014]
[1751331831114,3.06648232,2495.0,2494.9,2.9014]
[1751331831914,0.80143,2494.9,2494.8,1.46464]
[1751331832115,24.298,2494.9,2494.8,7.25464]
[1751331832711,25.09943,2494.9,2494.8,7.25464]
[1751331832911,24.298,2494.9,2494.8,7.25464]
[1751331835815,25.09943,2494.9,2494.8,7.25464]
[1751331837512,27.36448232,2494.9,2494.8,6.59146]
[1751331840616,0.80159,2494.4,2494.3,3.2078]
[1751331840817,27.35164232,2494.4,2494.3,4.10942]
[1751331841012,27.35164232,2494.4,2494.3,6.39942]
[1751331841319,0.80166,2494.2,2494.1,0.6818]
[1751331841514,3.06673232,2494.2,2494.1,2.87169]
[1751331841716,3.06673232,2494.2,2494.1,0.80169]
[1751331842119,0.80172,2494.0,2493.9,2.0469]
[1751331842320,25.10072,2494.0,2493.9,6.2369]
[1751331842523,25.10072,2494.0,2493.9,4.8718]
[1751331842524,27.36577232,2494.0,2493.9,4.8718]
[1751331842812,27.36577232,2494.0,2493.9,4.19]
[1751331843216,2.26505232,2493.7,2493.1,2.0332]
[1751331843522,25.79706,2493.6,2493.5,0.80188]
[1751331843713,25.79706,2493.6,2493.5,1.95]
[1751331843914,0.80188,2493.5,2493.4,0.8019]
[1751331844113,0.80188,2493.5,2493.4,2.5419]
[1751331844309,0.80188,2493.5,2493.4,1.74]
[1751331844919,3.06693232,2493.5,2493.4,1.74]
[1751331845620,3.06693232,2493.5,2493.4,0.80191]
[1751331845825,3.06693232,2493.5,2493.2,1.326]
[1751331846121,3.06693232,2493.5,2493.2,6.726]
[1751331846419,3.06693232,2493.5,2493.4,0.80191]
[1751331846621,3.06696232,2493.5,2493.4,2.21]
[1751331846821,3.06696232,2493.5,2493.4,3.01191]
[1751331847023,2.26505232,2493.5,2493.4,3.01191]
[1751331847912,3.06693232,2493.5,2493.4,2.21]
[1751331848419,3.06693232,2493.5,2493.4,3.01191]
[1751331848623,2.26505232,2493.5,2493.4,3.01191]
[1751331853418,24.9952,2493.6,2493.5,0.80188]
[1751331853622,24.9952,2493.6,2493.5,0.94188]
[1751331855924,3.2078,2493.7,2493.6,0.80185]
[1751331856227,29.76585232,2493.7,2493.6,0.89185]
[1751331856617,30.56767232,2493.7,2493.6,0.89185]
[1751331858730,30.56767232,2493.7,2493.6,0.09]
[1751331861432,0.80198,2493.2,2493.1,1.50919]
[1751331861628,27.35503232,2493.2,2493.1,2.16919]
[1751331862026,27.35503232,2493.2,2493.1,1.3672]
[1751331862222,27.35503232,2493.2,2493.1,1.46201]
[1751331862630,27.35503232,2493.2,2493.1,0.66]
[1751331862933,0.80216,2492.7,2492.6,0.80215]
[1751331863123,27.35721232,2492.7,2492.6,1.84215]
[1751331863625,27.35721232,2492.7,2492.6,1.04]
[1751331864328,27.35721232,2492.7,2492.6,1.84217]
[1751331864525,27.35721232,2492.7,2492.6,1.04]
[1751331864730,27.35721232,2492.7,2492.6,1.84217]
[1751331865429,27.35721232,2492.7,2492.6,1.04]
[1751331866532,27.35721232,2492.7,2492.6,1.84217]
[1751331866832,26.55505232,2492.7,2492.6,1.84217]
[1751331867221,27.35719232,2492.7,2492.6,1.84217]
[1751331867427,2.00543,2492.6,2492.2,4.01007]
[1751331867724,0.80225,2492.4,2492.3,0.80224]
[1751331867924,25.09825,2492.4,2492.3,3.31]
[1751331868430,4.71443,2492.4,2492.3,1.24227]
[1751331868627,29.01443,2492.4,2492.3,0.44]
[1751331868822,0.80227,2492.3,2492.2,0.80227]
[1751331869021,0.80227,2492.3,2492.2,1.00227]
[1751331869226,0.80227,2492.3,2492.2,0.2]
[1751331869528,3.3229,2492.3,2491.9,0.80239]
[1751331869727,2.26505232,2492.0,2491.9,0.98239]
[1751331870027,27.37343232,2492.0,2491.9,0.18]
[1751331870230,27.37343232,2492.0,2491.9,0.9824]
[1751331870431,26.57105232,2492.0,2491.9,0.9824]
[1751331871335,24.309,2492.0,2491.9,0.9824]
[1751331871528,24.309,2492.0,2491.9,2.2792]
[1751331871733,32.84926464,2492.0,2491.9,0.18]
[1751331872023,0.80242,2491.9,2491.7,1.45805]
[1751331872231,2.26505232,2491.8,2491.7,4.87805]
[1751331872432,2.26505232,2491.8,2491.7,6.17485]
[1751331873327,3.2078,2492.0,2491.9,0.8024]
[1751331873530,24.352,2492.0,2491.9,2.4624]
[1751331874333,24.351,2492.0,2491.9,1.66]
[1751331874541,28.36116,2492.0,2491.9,1.66]
[1751331875234,0.80241,2491.9,2491.7,1.45806]
[1751331875430,3.06746232,2491.9,2491.7,2.53806]
[1751331875631,3.06746232,2491.9,2491.8,0.80243]
[1751331875832,0.80231,2492.2,2492.1,0.80233]
[1751331876028,5.47285232,2492.3,2492.2,0.8023]
[1751331876029,3.2078,2492.3,2492.2,0.8023]
[1751331876237,3.2078,2492.3,2492.2,3.9123]
[1751331876238,27.5778,2492.3,2492.2,3.9123]
[1751331876534,27.5828,2492.3,2492.2,3.9123]
[1751331876733,0.7044,2492.4,2492.3,0.80227]
[1751331877236,3.2078,2492.6,2492.5,0.8022]
[1751331877432,27.5868,2492.6,2492.5,4.7922]
[1751331877932,27.5868,2492.6,2492.5,6.0861]
[1751331878331,3.2078,2492.6,2492.5,6.0861]
[1751331878525,24.383,2492.6,2492.5,6.0861]
[1751331878731,0.80213,2492.8,2492.7,0.80214]
[1751331878927,4.00987,2492.9,2492.8,0.80211]
[1751331879133,28.39587,2492.9,2492.8,2.09601]
[1751331879430,28.39687,2492.9,2492.8,2.09601]
[1751331879633,28.39687,2492.9,2492.8,1.2939]
[1751331879828,27.5948,2492.9,2492.8,2.09601]
[1751331880029,28.39687,2492.9,2492.8,2.09601]
[1751331880731,4.00987,2492.9,2492.8,1.2939]
[1751331880935,28.39687,2492.9,2492.8,2.09601]
[1751331881136,28.39687,2492.9,2492.8,1.2939]
[1751331881339,0.80217,2492.6,2492.5,3.2078]
[1751331881636,3.2078,2492.9,2492.8,0.80211]
[1751331881837,24.386,2492.9,2492.8,0.80211]
[1751331882241,24.386,2492.9,2492.8,3.09211]
[1751331882436,25.18807,2492.9,2492.8,3.09211]
[1751331882731,24.386,2492.9,2492.8,3.09211]
[1751331882936,25.18807,2492.9,2492.8,3.09211]
[1751331883633,24.386,2492.9,2492.8,3.09211]
[1751331883836,0.80206,2493.0,2492.9,0.80207]
[1751331884033,24.397,2493.0,2492.9,3.10207]
[1751331884236,25.19904,2493.0,2492.9,0.80207]
[1751331884440,25.19904,2493.0,2492.9,3.16207]
[1751331884939,0.80209,2492.9,2492.8,0.80208]
[1751331885128,0.80209,2492.9,2492.8,4.52208]
[1751331886033,24.391,2493.1,2492.8,6.9278]
[1751331886233,0.80199,2493.2,2493.1,0.80201]
[1751331886434,25.19699,2493.2,2493.1,3.01201]
[1751331886839,0.80199,2493.2,2493.1,0.80201]
[1751331887044,25.19699,2493.2,2493.1,4.02331]
[1751331887229,25.19499,2493.2,2493.1,4.11331]
[1751331887434,24.393,2493.2,2493.1,2.09331]
[1751331887633,24.393,2493.2,2493.1,4.45331]
[1751331887834,0.80196,2493.3,2493.2,0.80198]
[1751331888138,0.80195,2493.3,2493.2,2.09328]
[1751331888334,3.2078,2493.6,2493.2,3.5613]
[1751331888534,0.8019,2493.5,2493.4,0.80189]
[1751331888735,25.1929,2493.5,2493.4,2.95189]
[1751331888934,25.1929,2493.5,2493.4,3.64439]
[1751331889137,25.1929,2493.5,2493.4,1.49439]
[1751331889335,25.1929,2493.5,2493.4,3.84439]
[1751331889933,3.2078,2493.6,2493.5,0.80188]
[1751331890139,27.5968,2493.6,2493.5,2.94188]
[1751331890336,27.5968,2493.6,2493.5,0.80188]
[1751331890736,27.5968,2493.6,2493.5,2.20448]
[1751331890932,25.19085,2493.6,2493.5,4.14448]
[1751331891140,25.19085,2493.6,2493.5,4.24448]
[1751331891437,25.19085,2493.6,2493.5,1.4026]
[1751331891832,0.80188,2493.5,2493.4,0.6925]
[1751331892242,0.80188,2493.5,2493.4,3.50441]
[1751331892643,25.19087,2493.6,2493.5,0.80188]
[1751331893036,25.19087,2493.6,2493.5,3.06188]
[1751331893438,25.19087,2493.6,2493.5,0.80188]
[1751331893632,25.19087,2493.6,2493.5,3.17188]
[1751331893838,25.18187,2493.6,2493.5,0.80188]
[1751331894033,0.80181,2493.8,2493.7,0.80179]
[1751331894339,25.19082,2493.8,2493.7,0.8018]
[1751331894540,0.80182,2493.8,2493.7,2.8418]
[1751331894735,4.00957,2493.9,2493.8,0.80178]
[1751331894942,3.2078,2493.9,2493.8,3.17178]
[1751331895546,0.80168,2494.2,2494.1,0.80169]
[1751331895848,0.80168,2494.2,2494.1,2.87169]
[1751331896033,28.39945,2494.3,2494.2,0.80166]
[1751331896234,28.39945,2494.3,2494.2,4.09266]
[1751331896441,28.39945,2494.3,2494.2,3.581]
[1751331896747,28.39945,2494.3,2494.2,2.15266]
[1751331896944,28.39945,2494.3,2494.2,4.50266]
[1751331897145,28.39945,2494.3,2494.2,4.45266]
[1751331897541,28.39945,2494.3,2494.2,2.15266]
[1751331897742,28.39945,2494.3,2494.2,1.351]
[1751331897941,28.39945,2494.3,2494.2,3.611]
[1751331898146,28.39945,2494.3,2494.2,3.631]
[1751331898345,0.80169,2494.1,2494.0,0.8017]
[1751331898548,0.80169,2494.1,2494.0,4.5827]
[1751331899649,0.80169,2494.1,2494.0,8.6127]
[1751331900146,0.80168,2494.2,2494.1,0.80166]
[1751331900447,0.80168,2494.2,2494.1,3.61246]
[1751331900648,0.80168,2494.2,2494.1,0.6908]
[1751331900846,0.80168,2494.2,2494.1,4.18249]
[1751331901350,0.6896,2494.5,2494.1,3.3808]
[1751331901554,0.80161,2494.4,2494.3,0.80159]
[1751331901741,0.80161,2494.4,2494.3,7.05159]
[1751331902050,0.80154,2494.6,2494.5,0.80156]
[1751331902246,0.80154,2494.6,2494.5,6.48156]
[1751331902448,5.8678,2494.9,2494.5,6.48156]
[1751331902449,0.80152,2494.7,2494.6,0.80149]
[1751331902752,0.80152,2494.7,2494.6,4.18109]
[1751331903247,0.80152,2494.7,2494.6,3.3796]
[1751331903649,0.80152,2494.7,2494.6,4.18113]
[1751331904353,0.694,2495.2,2494.9,0.8014]
[1751331904553,0.80142,2495.0,2494.9,2.7214]
[1751331904947,0.80146,2494.9,2494.8,0.80145]
[1751331905150,0.80146,2494.9,2494.8,4.51525]
[1751331905351,0.80146,2494.9,2494.8,4.45525]
[1751331905554,0.80146,2494.9,2494.8,3.5438]
[1751331905949,4.35147425,2494.9,2494.5,0.80155]
[1751331906256,0.80156,2494.6,2494.5,3.11155]
[1751331906754,24.38,2494.9,2494.5,3.6538]
[1751331906954,0.8015,2494.8,2494.7,0.80148]
[1751331907351,0.80152,2494.7,2494.6,0.8015]
[1751331907551,0.80152,2494.7,2494.6,0.8615]
[1751331907750,0.80153,2494.6,2494.5,1.3438]
[1751331908054,0.80153,2494.6,2494.5,1.3738]
[1751331908253,0.80152,2494.7,2494.6,0.8015]
[1751331908445,0.80148,2494.8,2494.7,0.80146]
[1751331908652,0.80145,2494.9,2494.8,0.80143]
[1751331908854,3.2078,2495.0,2494.9,0.80143]
[1751331909050,0.8014,2495.0,2494.9,5.34143]
[1751331909353,0.80139,2495.1,2495.0,0.80137]
[1751331909548,0.80139,2495.1,2495.0,7.10137]
[1751331909747,0.6536,2495.2,2495.0,7.10137]
[1751331909748,1.45496,2495.2,2495.1,0.80137]
[1751331909950,0.8014,2495.1,2495.0,0.80138]
[1751331910150,0.8014,2495.1,2495.0,6.52138]
[1751331910756,0.8014,2495.1,2495.0,5.72]
[1751331911155,0.8014,2495.1,2495.0,6.5214]
[1751331911852,0.8014,2495.1,2495.0,5.72]
[1751331912355,0.8014,2495.1,2495.0,6.5214]
[1751331912857,1.45495,2495.2,2495.1,0.80137]
[1751331913057,24.383,2495.4,2495.2,0.80132]
[1751331913353,0.80139,2495.1,2495.0,0.80136]
[1751331913559,0.80139,2495.1,2495.0,6.09136]
[1751331914357,25.0932,2495.4,2494.9,5.2769]
[1751331914358,0.8014,2495.0,2494.9,3.8666]
[1751331914564,0.80153,2494.7,2494.6,3.2078]
[1751331914763,0.80153,2494.7,2494.6,3.4]
[1751331915061,0.80159,2494.4,2494.3,11.333]
[1751331915369,0.80162,2494.3,2494.2,4.00943]
[1751331915568,0.80162,2494.3,2494.2,6.58943]
[1751331916156,0.80162,2494.3,2494.2,3.38163]
[1751331917561,0.80162,2494.3,2494.2,2.58]
[1751331918365,1.46992,2494.3,2494.2,2.58]
[1751331918566,1.46992,2494.3,2494.2,3.38166]
[1751331920466,0.6683,2494.3,2494.2,3.38166]
[1751331921367,1.46992,2494.3,2494.2,3.38166]
[1751331923070,0.6681,2494.5,2494.4,0.80159]
[1751331923264,0.80156,2494.5,2494.4,5.83157]
[1751331923569,5.90958,2494.8,2494.2,7.55427724]
[1751331923570,0.80165,2494.3,2494.2,0.80162]
[1751331923764,0.80165,2494.3,2494.2,2.89162]
[1751331924770,0.80162,2494.4,2494.3,0.80159]
[1751331924970,0.80162,2494.4,2494.3,3.22159]
[1751331926873,0.80162,2494.4,2494.3,2.42]
[1751331928975,0.80172,2494.0,2493.9,1.19821423]
[1751331929169,2.00417,2494.2,2493.9,2.09]
[1751331929370,0.80172,2494.0,2493.9,2.09]
[1751331929768,5.14819724,2494.0,2493.9,2.09]
[1751331930068,6.48089724,2494.0,2493.9,2.09]
[1751331930777,0.80185,2493.6,2493.5,1.19821423]
[1751331931079,0.80185,2493.6,2493.5,3.97821423]
[1751331931273,0.80185,2493.6,2493.5,2.78]
[1751331931779,2.13455,2493.6,2493.5,2.78]
[1751331933073,0.80185,2493.6,2493.5,3.58188]
[1751331933376,1.3455,2493.7,2493.6,0.80185]
[1751331933576,2.14732,2493.7,2493.6,0.99185]
[1751331933772,2.14732,2493.7,2493.6,0.19]
[1751331934179,3.44822,2493.7,2493.6,0.19]
[1751331934980,2.6464,2493.7,2493.6,0.99185]
[1751331935182,3.2078,2493.8,2493.7,0.80182]
[1751331935480,3.2078,2493.8,2493.7,8.23242]
[1751331936375,3.2078,2493.8,2493.7,6.90182]
[1751331936780,4.00958,2493.8,2493.7,6.90182]
[1751331937385,3.2078,2493.8,2493.7,6.90182]
[1751331937680,4.00958,2493.8,2493.7,6.90182]
[1751331937882,3.2078,2493.8,2493.7,6.90182]
[1751331938079,4.00958,2493.8,2493.7,6.90182]
[1751331938982,0.80178,2493.8,2493.7,6.90182]
[1751331939178,0.80178,2493.8,2493.7,6.1]
[1751331939377,4.00958,2493.8,2493.7,6.1]
[1751331939577,0.80188,2493.5,2493.4,3.2078]
[1751331939779,0.80188,2493.5,2493.4,6.0378]
[1751331940083,0.80188,2493.5,2493.4,2.83]
[1751331940479,2.15238,2493.5,2493.4,2.83]
[1751331941580,5.36018,2493.5,2493.0,3.2078]
[1751331941885,5.14848724,2493.1,2493.0,0.4]
[1751331942083,0.80204,2493.0,2492.9,0.80205]
[1751331942280,0.80204,2493.0,2492.9,0.83205]
[1751331942483,0.80204,2493.0,2492.9,0.03]
[1751331942783,0.80204,2493.0,2492.9,0.83207]
[1751331943189,0.80203,2493.1,2493.0,0.80204]
[1751331943378,0.80203,2493.1,2493.0,2.79204]
[1751331943682,0.7148,2493.2,2493.1,0.80201]
[1751331943889,0.80201,2493.1,2493.0,0.80202]